bitfinex/quotes_BTCUSD_20251209
["timestamp","ask_amount","ask_price","bid_price","bid_amount"]
[1765316687312,1.66058954,92762.0,92761.0,0.0002292]
[1765316688567,1.66558954,92762.0,92761.0,0.0002292]
[1765316688771,1.68861073,92762.0,92761.0,0.0002292]
[1765316689185,1.66558954,92762.0,92761.0,0.0002292]
[1765316690228,0.22567216,92731.0,92730.0,0.0002]
[1765316690357,0.33369515,92731.0,92730.0,0.0002]
[1765316690700,0.35845515,92731.0,92730.0,0.0002]
[1765316691564,0.36345515,92731.0,92730.0,0.0002]
[1765316692403,0.65115515,92731.0,92730.0,0.0002]
[1765316692821,0.65015515,92731.0,92730.0,0.0002]
[1765316693229,0.65115515,92731.0,92730.0,0.0002]
[1765316693574,0.65015515,92731.0,92730.0,0.0002]
[1765316693995,0.65115515,92731.0,92730.0,0.0002]
[1765316694614,0.65015515,92731.0,92730.0,0.0002]
[1765316695009,0.65215515,92731.0,92730.0,0.0002]
[1765316695961,0.65215515,92731.0,92730.0,0.00108848]
[1765316696311,1.66424515,92731.0,92730.0,0.00108848]
[1765316697187,1.66324515,92731.0,92730.0,0.00108848]
[1765316697452,1.66424515,92731.0,92730.0,0.00108848]
[1765316697723,1.66824515,92731.0,92730.0,0.00108848]
[1765316700016,0.34569971,92731.0,92730.0,0.00108848]
[1765316700245,0.38753971,92731.0,92730.0,0.00108848]
[1765316700447,0.67823971,92731.0,92730.0,0.00108848]
[1765316702392,1.67823971,92731.0,92730.0,0.00108848]
[1765316706841,0.59099214,92721.0,92720.0,0.00017696]
[1765316706987,1.61048214,92721.0,92720.0,0.00017696]
[1765316707189,1.63530214,92721.0,92720.0,0.00017696]
[1765316707388,1.65556314,92721.0,92720.0,0.00017696]
[1765316707592,1.66056941,92721.0,92720.0,0.00017696]
[1765316708203,1.66456941,92721.0,92720.0,0.00017696]
[1765316708667,1.06096941,92721.0,92720.0,0.00017696]
[1765316708992,1.05996941,92721.0,92720.0,0.00017696]
[1765316709461,1.06196941,92721.0,92720.0,0.00017696]
[1765316709636,1.66656941,92721.0,92720.0,0.00017696]
[1765316709816,0.66656941,92721.0,92720.0,0.00017696]
[1765316710249,0.67653357,92721.0,92720.0,0.00017696]
[1765316710483,0.67814644,92721.0,92720.0,0.00017696]
[1765316712164,1.67814644,92721.0,92720.0,0.00017696]
[1765316712588,1.67814644,92721.0,92720.0,0.00046365]
[1765316715017,1.67614644,92721.0,92720.0,0.00046365]
[1765316715430,1.67914644,92721.0,92720.0,0.00046365]
[1765316716361,0.67514644,92721.0,92720.0,0.00046365]
[1765316716567,1.68014644,92721.0,92720.0,0.00046365]
[1765316717300,0.68014644,92721.0,92720.0,0.00046365]
[1765316717498,1.68014644,92721.0,92720.0,0.00046365]
[1765316718118,0.71790345,92721.0,92720.0,0.00046365]
[1765316718338,1.67682644,92721.0,92720.0,0.00046365]
[1765316721346,1.69984391,92721.0,92720.0,0.00046365]
[1765316722926,1.69484391,92721.0,92720.0,0.00046365]
[1765316723098,1.70284391,92721.0,92720.0,0.00046365]
[1765316723544,1.69184391,92721.0,92720.0,0.00046365]
[1765316723756,1.69684391,92721.0,92720.0,0.00046365]
[1765316724393,1.70184391,92721.0,92720.0,0.00046365]
[1765316724802,1.69684391,92721.0,92720.0,0.00046365]
[1765316725209,1.69984391,92721.0,92720.0,0.00046365]
[1765316726080,1.70983847,92721.0,92720.0,0.00046365]
[1765316726293,0.01078678,92706.0,92700.0,0.25333335]
[1765316726500,0.01078678,92706.0,92700.0,0.12433335]
[1765316726501,0.59442495,92701.0,92700.0,0.12433335]
[1765316726724,1.62740658,92701.0,92700.0,0.13676669]
[1765316726947,0.64452658,92701.0,92700.0,0.12433335]
[1765316727159,0.65390783,92701.0,92700.0,0.12433335]
[1765316727377,0.95120783,92701.0,92700.0,0.12433335]
[1765316727571,1.60880783,92701.0,92700.0,0.13676669]
[1765316727777,0.65390783,92701.0,92700.0,0.12433335]
[1765316727928,0.62432783,92701.0,92700.0,0.12433335]
[1765316728148,0.59192911,92701.0,92700.0,0.12433335]
[1765316728467,0.52940612,92701.0,92700.0,0.12433335]
[1765316728794,0.59692911,92701.0,92700.0,0.13676669]
[1765316729150,0.30122911,92701.0,92700.0,0.15238669]
[1765316729389,0.27927039,92701.0,92700.0,0.17723669]
[1765316729757,0.2187474,92701.0,92700.0,0.17723669]
[1765316730254,0.27927039,92701.0,92700.0,0.17723669]
[1765316730690,0.28027039,92701.0,92700.0,0.17723669]
[1765316731141,0.28027039,92701.0,92700.0,0.12433335]
[1765316731142,0.27927039,92701.0,92700.0,0.12433335]
[1765316731299,0.28926495,92701.0,92700.0,0.12433335]
[1765316731500,0.29126495,92701.0,92700.0,0.12433335]
[1765316731900,0.29026495,92701.0,92700.0,0.12433335]
[1765316732349,0.29026495,92701.0,92700.0,0.12490688]
[1765316732484,0.29426495,92701.0,92700.0,0.12490688]
[1765316732870,0.29026495,92701.0,92700.0,0.12490688]
[1765316733078,0.29026495,92701.0,92700.0,0.12590688]
[1765316733292,0.29126495,92701.0,92700.0,0.12590688]
[1765316734350,0.58196495,92701.0,92700.0,0.12590688]
[1765316734550,0.59196722,92701.0,92700.0,0.12590688]
[1765316735266,1.59196722,92701.0,92700.0,0.12590688]
[1765316735566,1.42256722,92701.0,92700.0,0.12590688]
[1765316736336,1.61500177,92701.0,92700.0,0.12590688]
[1765316736791,1.61400177,92701.0,92700.0,0.12590688]
[1765316736973,1.64440199,92701.0,92700.0,0.12490688]
[1765316737169,1.64440199,92701.0,92700.0,0.12470688]
[1765316737170,1.64640199,92701.0,92700.0,0.12470688]
[1765316737371,1.62336744,92701.0,92700.0,0.12470688]
[1765316737573,1.62336284,92701.0,92700.0,0.12470688]
[1765316738341,1.62736284,92701.0,92700.0,0.12470688]
[1765316739339,1.65037177,92701.0,92700.0,0.12470688]
[1765316744200,1.62736284,92701.0,92700.0,0.12470688]
[1765316746108,1.64448284,92701.0,92700.0,0.12470688]
[1765316748871,1.11786284,92701.0,92700.0,0.12470688]
[1765316749071,1.10828517,92701.0,92700.0,0.12470688]
[1765316749289,1.07588495,92701.0,92700.0,0.12470688]
[1765316749659,1.60208495,92701.0,92700.0,0.12470688]
[1765316749859,1.05758495,92701.0,92700.0,0.12470688]
[1765316750070,0.23174196,92701.0,92700.0,0.17767757]
[1765316750936,0.23174196,92701.0,92700.0,0.01262097]
[1765316751141,0.23174196,92701.0,92700.0,0.02815097]
[1765316751342,0.29426495,92701.0,92700.0,0.02815097]
[1765316751636,0.29026495,92701.0,92700.0,0.10011468]
[1765316751820,0.22974196,92701.0,92700.0,0.02815097]
[1765316752020,0.29426495,92701.0,92700.0,0.02815097]
[1765316752698,0.01078806,92695.0,92692.0,0.01184]
[1765316752920,0.23783431,92693.0,92692.0,0.01184]
[1765316753144,0.23783431,92693.0,92692.0,0.03783871]
[1765316753343,0.23783431,92693.0,92692.0,0.05359816]
[1765316753693,0.23783431,92693.0,92692.0,0.07856816]
[1765316754023,0.24083431,92693.0,92692.0,0.07956816]
[1765316754655,0.3033573,92693.0,92692.0,0.07956816]
[1765316754856,0.3033573,92693.0,92692.0,0.05356945]
[1765316755218,0.3033573,92693.0,92692.0,0.04856945]
[1765316755402,0.3033573,92693.0,92692.0,0.00122945]
[1765316755607,0.3043573,92693.0,92692.0,0.01306945]
[1765316755808,0.3043573,92693.0,92692.0,0.00122945]
[1765316756870,0.3043573,92693.0,92692.0,0.02769055]
[1765316757078,1.3043573,92693.0,92692.0,0.00122945]
[1765316757276,0.5751573,92693.0,92692.0,0.00122945]
[1765316757901,0.5711573,92693.0,92692.0,0.00022945]
[1765316758101,0.6056573,92693.0,92692.0,0.00222945]
[1765316758259,0.6086573,92693.0,92692.0,0.00222945]
[1765316758666,0.6408573,92693.0,92692.0,0.00222945]
[1765316759002,0.6290573,92693.0,92692.0,0.00222945]
[1765316759670,0.4758573,92693.0,92692.0,0.00222945]
[1765316760064,1.1598573,92693.0,92692.0,0.00222945]
[1765316760288,1.1320573,92693.0,92692.0,0.00222945]
[1765316760715,0.3033573,92693.0,92692.0,0.00222945]
[1765316760921,0.3204773,92693.0,92692.0,0.00222945]
[1765316761113,0.3033573,92693.0,92692.0,0.00222945]
[1765316761372,0.3204773,92693.0,92692.0,0.00222945]
[1765316761728,0.21876602,92693.0,92692.0,0.04272945]
[1765316761955,0.21876602,92693.0,92692.0,0.0481864]
[1765316762233,0.21876602,92693.0,92692.0,0.0232164]
[1765316762412,0.28128901,92693.0,92692.0,0.0076864]
[1765316763062,0.3033573,92693.0,92692.0,0.00222945]
[1765316763797,0.28128901,92693.0,92692.0,0.00222945]
[1765316764409,0.003,92693.0,92692.0,0.04272945]
[1765316764760,0.003,92693.0,92692.0,0.2584978]
[1765316765123,0.003,92693.0,92692.0,0.33386308]
[1765316765307,0.002,92693.0,92692.0,0.33286308]
[1765316765735,0.003,92693.0,92692.0,0.33286308]
[1765316766646,0.001,92693.0,92692.0,0.33186308]
[1765316766876,0.0207782,92733.0,92730.0,0.01078399]
[1765316767075,0.03838055,92752.0,92701.0,0.2907]
[1765316767076,0.22643743,92741.0,92737.0,0.21566309]
[1765316767307,0.28896492,92739.0,92738.0,0.02264464]
[1765316767517,0.22644193,92739.0,92738.0,0.02264464]
[1765316767919,0.01078271,92741.0,92738.0,0.06246464]
[1765316768244,0.01478271,92741.0,92740.0,0.0166]
[1765316768767,0.01078271,92741.0,92740.0,0.03982]
[1765316769288,0.0733057,92741.0,92740.0,0.03982]
[1765316770464,0.21566365,92737.0,92736.0,0.01212]
[1765316770808,0.21566132,92738.0,92736.0,0.01212]
[1765316771011,0.21566132,92738.0,92737.0,0.06310329]
[1765316771485,0.21566132,92738.0,92737.0,0.03982]
[1765316772069,0.21766132,92738.0,92737.0,0.03982]
[1765316772449,0.21566132,92738.0,92737.0,0.03982]
[1765316772875,0.21766132,92738.0,92737.0,0.04082]
[1765316773350,0.22066132,92738.0,92737.0,0.04182]
[1765316773639,0.3052526,92738.0,92737.0,0.002]
[1765316777229,0.3052526,92738.0,92737.0,0.0186]
[1765316777431,0.005,92738.0,92737.0,0.04182]
[1765316777671,0.00999456,92748.0,92737.0,0.04182]
[1765316777672,0.01078201,92747.0,92742.0,0.0107826]
[1765316777983,0.01078178,92749.0,92745.0,0.22642678]
[1765316778200,0.01078178,92749.0,92748.0,0.0166]
[1765316778595,0.22641564,92750.0,92748.0,0.03982]
[1765316778837,0.22641564,92750.0,92749.0,0.04045]
[1765316781280,0.22741564,92750.0,92749.0,0.04145]
[1765316781489,0.001,92750.0,92749.0,0.28679805]
[1765316782143,0.2263596,92773.0,92749.0,0.08116418]
[1765316782354,0.01077818,92780.0,92770.0,0.01077934]
[1765316782576,0.21557897,92774.0,92772.0,0.01651]
[1765316782801,0.21557383,92776.0,92770.0,0.01077934]
[1765316783003,0.21557383,92776.0,92769.0,0.02394]
[1765316783004,0.00999456,92785.0,92783.0,0.01077783]
[1765316783208,0.00999456,92785.0,92771.0,0.0056839]
[1765316783209,0.01077667,92793.0,92787.0,0.01077737]
[1765316783407,0.22631902,92790.0,92789.0,0.01651]
[1765316783844,0.01077725,92788.0,92785.0,0.01134]
[1765316784466,0.01077725,92788.0,92787.0,0.01651]
[1765316784963,0.01077725,92788.0,92787.0,0.04045]
[1765316785261,0.01077725,92788.0,92787.0,0.06836295]
[1765316785661,0.01077725,92788.0,92787.0,0.04045]
[1765316785958,0.01277725,92788.0,92787.0,0.04045]
[1765316786158,0.01077725,92788.0,92787.0,0.04045]
[1765316786482,0.01277725,92788.0,92787.0,0.04145]
[1765316786817,0.003,92788.0,92787.0,0.04145]
[1765316787025,0.003,92788.0,92787.0,0.2655098]
[1765316787238,0.002,92788.0,92787.0,0.2655098]
[1765316787602,0.004,92788.0,92787.0,0.2665098]
[1765316788191,0.004,92788.0,92787.0,0.05096237]
[1765316792481,0.004,92788.0,92787.0,0.2665098]
[1765316794046,0.004,92788.0,92787.0,0.2835898]
[1765316794267,0.004,92788.0,92787.0,0.29359167]
[1765316794478,0.004,92788.0,92787.0,0.2835898]
[1765316794911,0.002,92788.0,92787.0,0.2825898]
[1765316795485,0.0004,92800.0,92799.0,0.21551956]
[1765316795610,0.0004,92800.0,92799.0,0.25573679]
[1765316795808,0.0004,92800.0,92799.0,0.27967679]
[1765316796872,0.0024,92800.0,92799.0,0.06515723]
[1765316797130,0.0034,92800.0,92799.0,0.28067679]
[1765316799571,0.2830531,92800.0,92799.0,0.001]
[1765316799727,0.30512139,92800.0,92799.0,0.001]
[1765316801883,0.30512139,92800.0,92782.0,0.02394]
[1765316801884,0.21554975,92786.0,92782.0,0.02394]
[1765316802252,0.01077841,92778.0,92772.0,0.01077911]
[1765316802451,0.21557343,92776.0,92775.0,0.00670024]
[1765316802952,0.01077818,92780.0,92776.0,0.01077864]
[1765316803160,0.21556369,92780.0,92779.0,0.01651]
[1765316803614,0.21556369,92780.0,92775.0,0.00670024]
[1765316803615,0.21557299,92776.0,92775.0,0.00670024]
[1765316803752,0.21557299,92776.0,92766.0,0.01077981]
[1765316803753,0.01077923,92771.0,92766.0,0.01077981]
[1765316803936,0.21558925,92769.0,92764.0,0.01078004]
[1765316804138,0.21558925,92769.0,92763.0,0.03472016]
[1765316804652,0.21558925,92769.0,92763.0,0.02394]
[1765316804860,0.01077981,92766.0,92763.0,0.02394]
[1765316805079,0.21559189,92768.0,92765.0,0.21559855]
[1765316805278,0.22637359,92767.0,92766.0,0.04988236]
[1765316805647,0.22637359,92767.0,92766.0,0.09033236]
[1765316806265,0.06252299,92770.0,92767.0,0.01077969]
[1765316806470,0.2155939,92767.0,92766.0,0.003]
[1765316806675,0.2155939,92767.0,92766.0,0.00898408]
[1765316807107,0.2155939,92767.0,92766.0,0.02449408]
[1765316807509,0.2155939,92767.0,92766.0,0.04843408]
[1765316807711,0.06352299,92770.0,92766.0,0.04843408]
[1765316807969,0.01077946,92769.0,92767.0,0.02394]
[1765316808142,0.21559158,92768.0,92767.0,0.02394]
[1765316808538,0.21559158,92768.0,92767.0,0.04045]
[1765316808894,0.21559158,92768.0,92767.0,0.01651]
[1765316809112,0.001,92769.0,92767.0,0.04245]
[1765316809327,0.2155939,92767.0,92766.0,0.00598408]
[1765316810451,0.2155939,92767.0,92760.0,0.01134]
[1765316810452,0.21560785,92761.0,92760.0,0.01134]
[1765316810650,0.21560785,92761.0,92760.0,0.03628]
[1765316810857,0.21560785,92761.0,92760.0,0.0527]
[1765316811076,0.21559879,92765.0,92761.0,0.21560785]
[1765316811278,0.22637901,92765.0,92764.0,0.01642]
[1765316811469,0.22637901,92765.0,92764.0,0.04748522]
[1765316811693,0.22637901,92765.0,92764.0,0.07242522]
[1765316812347,0.22637901,92765.0,92764.0,0.04848522]
[1765316812555,0.22837901,92765.0,92764.0,0.04948522]
[1765316812849,0.22837901,92765.0,92764.0,0.01842]
[1765316814480,0.22837901,92765.0,92764.0,0.002]
[1765316814691,0.30250943,92765.0,92764.0,0.002]
[1765316815451,0.30150943,92765.0,92764.0,0.05393]
[1765316815653,0.30150943,92765.0,92764.0,0.26953087]
[1765316815654,0.06252299,92765.0,92764.0,0.26953087]
[1765316815853,0.002,92765.0,92764.0,0.32357928]
[1765316816056,0.003,92765.0,92764.0,0.32457928]
[1765316816806,0.002,92765.0,92764.0,0.32357928]
[1765316817119,0.002,92765.0,92764.0,0.10797841]
[1765316817327,0.21759855,92765.0,92764.0,0.10797841]
[1765316817543,0.21559855,92765.0,92764.0,0.10697841]
[1765316817774,0.21659855,92765.0,92764.0,0.10697841]
[1765316818198,0.21759855,92765.0,92764.0,0.10697841]
[1765316819236,0.21759855,92765.0,92764.0,0.05404841]
[1765316819443,0.21561482,92758.0,92757.0,0.01]
[1765316819816,0.21561482,92758.0,92757.0,0.05136]
[1765316820227,0.21561482,92758.0,92757.0,0.01]
[1765316820228,0.28974524,92758.0,92757.0,0.01]
[1765316820435,0.30181897,92758.0,92757.0,0.01]
[1765316820641,1.30181897,92758.0,92757.0,0.01]
[1765316820851,1.30281897,92758.0,92757.0,0.011]
[1765316821063,0.30281897,92758.0,92757.0,0.011]
[1765316821272,0.30281897,92758.0,92757.0,0.01]
[1765316821708,0.30381897,92758.0,92757.0,0.011]
[1765316821921,0.31479138,92758.0,92757.0,0.011]
[1765316822388,0.30481897,92758.0,92757.0,0.011]
[1765316822792,0.30381897,92758.0,92757.0,0.011]
[1765316823058,0.30481897,92758.0,92757.0,0.011]
[1765316823402,0.30281897,92758.0,92757.0,0.01]
[1765316823826,0.30381897,92758.0,92757.0,0.011]
[1765316826318,1.59451897,92758.0,92757.0,0.011]
[1765316827123,1.60448891,92758.0,92757.0,0.011]
[1765316827328,1.60448952,92758.0,92757.0,0.011]
[1765316827547,0.21571947,92713.0,92712.0,0.01181]
[1765316828325,0.21571947,92713.0,92712.0,0.02745]
[1765316828582,0.27824246,92713.0,92712.0,0.02745]
[1765316828798,0.2265319,92703.0,92702.0,0.01181]
[1765316828932,0.2265319,92703.0,92702.0,0.01865459]
[1765316829126,0.2265319,92703.0,92702.0,0.05754459]
[1765316829930,0.2275319,92703.0,92702.0,0.05754459]
[1765316830133,0.21575904,92696.0,92695.0,0.01181]
[1765316830346,0.2257536,92696.0,92695.0,0.01181]
[1765316830540,0.01078771,92698.0,92692.0,0.00022945]
[1765316830541,0.23783431,92693.0,92692.0,0.00022945]
[1765316831212,0.23783431,92693.0,92692.0,0.02759659]
[1765316831599,0.23783431,92693.0,92692.0,0.00022945]
[1765316832160,0.23983431,92693.0,92692.0,0.00022945]
[1765316832798,0.23983431,92693.0,92692.0,0.01586945]
[1765316833005,0.21776602,92693.0,92692.0,0.03911945]
[1765316833183,0.21776602,92693.0,92692.0,0.04111945]
[1765316833410,0.003,92693.0,92692.0,0.04111945]
[1765316833842,0.003,92693.0,92692.0,0.05725348]
[1765316833992,0.003,92693.0,92692.0,0.00222945]
[1765316835412,0.06713586,92693.0,92692.0,0.00222945]
[1765316835653,0.39490498,92693.0,92692.0,0.00222945]
[1765316836192,1.39490498,92693.0,92692.0,0.00222945]
[1765316836389,1.39390498,92693.0,92692.0,0.00022945]
[1765316836617,1.39490498,92693.0,92692.0,0.00122945]
[1765316837279,1.39290498,92693.0,92692.0,0.00122945]
[1765316837819,1.39390498,92693.0,92692.0,0.00122945]
[1765316838562,0.21581957,92670.0,92669.0,0.00907657]
[1765316838794,0.27995543,92670.0,92669.0,0.02600582]
[1765316838997,0.27995543,92670.0,92663.0,4e-05]
[1765316838998,0.23790183,92664.0,92663.0,4e-05]
[1765316839419,0.23790183,92664.0,92663.0,0.00087207]
[1765316840773,0.23890183,92664.0,92663.0,0.00187207]
[1765316840916,0.02306829,92664.0,92663.0,0.00187207]
[1765316841113,0.02406829,92664.0,92663.0,0.00187207]
[1765316841314,0.06452299,92664.0,92663.0,0.05326945]
[1765316841679,0.37629128,92664.0,92663.0,0.00187207]
[1765316841831,0.37629128,92664.0,92663.0,0.00087207]
[1765316842028,0.37729128,92664.0,92663.0,0.00087207]
[1765316842435,1.36521755,92664.0,92663.0,0.00087207]
[1765316842618,1.36421755,92664.0,92663.0,0.00087207]
[1765316842817,1.36521755,92664.0,92663.0,0.00087207]
[1765316843023,1.37510502,92664.0,92663.0,0.00087207]
[1765316843244,1.36421755,92664.0,92663.0,0.00087207]
[1765316843605,1.39017972,92664.0,92663.0,0.00087207]
[1765316843807,1.39317972,92664.0,92663.0,0.00087207]
[1765316843937,1.39217972,92664.0,92663.0,0.00087207]
[1765316844824,1.39417972,92664.0,92663.0,0.00087207]
[1765316845234,1.36721755,92664.0,92663.0,0.00087207]
[1765316845431,0.28838138,92651.0,92643.0,9e-05]
[1765316845644,1.45309769,92644.0,92643.0,9e-05]
[1765316845843,0.76059142,92644.0,92643.0,9e-05]
[1765316846442,0.74347142,92644.0,92643.0,9e-05]
[1765316846698,0.76059142,92644.0,92643.0,9e-05]
[1765316847100,0.76159142,92644.0,92643.0,9e-05]
[1765316847879,1.60929142,92644.0,92643.0,9e-05]
[1765316849205,1.61029142,92644.0,92643.0,9e-05]
[1765316849741,1.60929142,92644.0,92643.0,9e-05]
[1765316850021,1.59117608,92642.0,92641.0,0.0013871]
[1765316850193,1.60104628,92642.0,92641.0,0.0013871]
[1765316850398,1.59117608,92642.0,92641.0,0.0013871]
[1765316850611,1.696843,92642.0,92641.0,0.0013871]
[1765316851474,1.61229608,92642.0,92641.0,0.0013871]
[1765316851873,1.61529608,92642.0,92641.0,0.0013871]
[1765316852318,1.62609311,92642.0,92641.0,0.0013871]
[1765316856052,1.62609311,92642.0,92641.0,0.00201857]
[1765316856277,1.33029608,92642.0,92641.0,0.00201857]
[1765316857120,1.61529608,92642.0,92641.0,0.00201857]
[1765316857473,1.62518439,92642.0,92641.0,0.00201857]
[1765316859640,1.62518439,92642.0,92592.0,0.02478]
[1765316859641,1.56913343,92631.0,92592.0,0.02478]
[1765316859830,1.61821003,92631.0,92595.0,0.02325971]
[1765316859970,1.61821003,92631.0,92595.0,0.01246]
[1765316860311,1.61821003,92631.0,92600.0,0.01536]
[1765316860671,1.35276974,92631.0,92600.0,0.0029]
[1765316861097,1.35676974,92631.0,92600.0,0.01536]
[1765316861296,1.35076974,92631.0,92600.0,0.01536]
[1765316861533,1.35376974,92631.0,92600.0,0.0029]
[1765316861695,1.35776974,92631.0,92600.0,0.0029]
[1765316861898,1.64846974,92631.0,92600.0,0.0029]
[1765316862293,1.65008261,92631.0,92600.0,0.0029]
[1765316862846,1.67289574,92631.0,92600.0,0.0029]
[1765316863825,1.67289574,92631.0,92630.0,1e-08]
[1765316864041,1.56749292,92631.0,92600.0,0.0029]
[1765316864250,0.57919793,92601.0,92600.0,0.0029]
[1765316864402,1.32190624,92601.0,92600.0,0.0029]
[1765316864860,0.59129499,92591.0,92556.0,0.02478]
[1765316865034,0.59129499,92591.0,92560.0,0.02496892]
[1765316865035,1.6011833,92591.0,92560.0,0.02496892]
[1765316865233,1.70685022,92591.0,92569.0,0.01246]
[1765316865393,1.70685022,92591.0,92564.0,0.01246]
[1765316865603,1.70685022,92591.0,92564.0,0.02326333]
[1765316865802,1.70685022,92591.0,92560.0,0.00018892]
[1765316866360,0.21607372,92561.0,92560.0,0.00018892]
[1765316866552,0.29571671,92561.0,92560.0,0.00018892]
[1765316866754,0.317785,92561.0,92560.0,0.00018892]
[1765316867316,1.58641671,92561.0,92560.0,0.00018892]
[1765316867515,1.609485,92561.0,92560.0,0.00018892]
[1765316867740,1.135685,92561.0,92560.0,0.00018892]
[1765316867942,1.136685,92561.0,92560.0,0.00018892]
[1765316868319,1.609485,92561.0,92560.0,0.00018892]
[1765316868518,1.62299332,92561.0,92560.0,0.00018892]
[1765316868725,1.61309787,92561.0,92560.0,0.00018892]
[1765316869226,0.61309787,92561.0,92560.0,0.00018892]
[1765316869431,1.61209787,92561.0,92560.0,0.00018892]
[1765316869628,1.61409787,92561.0,92560.0,8.892e-05]
[1765316869857,0.23819293,92540.0,92538.0,0.00679826]
[1765316870060,0.01712,92539.0,92538.0,0.00679826]
[1765316870267,0.08963755,92539.0,92538.0,0.00679826]
[1765316870586,0.09125042,92539.0,92538.0,0.00679826]
[1765316870786,1.09125042,92539.0,92538.0,0.00679826]
[1765316871002,1.09125042,92539.0,92538.0,0.00975836]
[1765316871172,1.38195042,92539.0,92538.0,0.00975836]
[1765316871397,1.39283085,92539.0,92538.0,0.00975836]
[1765316872296,1.39287085,92539.0,92538.0,0.00975836]
[1765316872479,1.39187085,92539.0,92538.0,0.00975836]
[1765316872886,1.39387085,92539.0,92538.0,0.00975836]
[1765316873086,1.39387085,92539.0,92506.0,0.01137]
[1765316873087,0.01080847,92520.0,92506.0,0.01137]
[1765316873286,1.37571085,92539.0,92512.0,0.0108094]
[1765316873287,0.21617759,92517.0,92512.0,0.0108094]
[1765316873499,0.01716,92528.0,92507.0,0.11040762]
[1765316873500,0.02206829,92511.0,92510.0,0.22700248]
[1765316873708,0.00461287,92539.0,92520.0,0.22697785]
[1765316873709,0.02206829,92521.0,92520.0,0.22697785]
[1765316874022,0.02206829,92525.0,92522.0,0.01080824]
[1765316874168,0.01080543,92546.0,92538.0,0.01080637]
[1765316874372,0.00999456,92549.0,92546.0,0.01080543]
[1765316874696,0.01716,92548.0,92546.0,0.02217543]
[1765316875021,0.01716,92548.0,92540.0,0.2161226]
[1765316875022,0.21611341,92544.0,92538.0,0.02217637]
[1765316875173,0.02206829,92540.0,92538.0,0.01137]
[1765316875379,0.02206829,92540.0,92539.0,0.24319778]
[1765316875692,0.21611341,92544.0,92539.0,0.04241269]
[1765316875871,0.01716,92545.0,92539.0,0.05321894]
[1765316876304,0.01716,92545.0,92542.0,0.22692179]
[1765316876509,0.01716,92545.0,92542.0,0.0108059]
[1765316876727,0.01716,92545.0,92544.0,0.01534]
[1765316876927,0.01816,92545.0,92544.0,0.01534]
[1765316877130,0.01816,92545.0,92544.0,0.03932]
[1765316877318,0.01816,92545.0,92542.0,0.05340853]
[1765316877319,0.24607663,92545.0,92542.0,0.05340853]
[1765316877522,0.24407663,92545.0,92542.0,0.05340853]
[1765316877684,0.24607663,92545.0,92543.0,0.03751818]
[1765316877886,0.24607663,92545.0,92544.0,0.01534]
[1765316877887,0.002,92545.0,92544.0,0.01534]
[1765316878111,0.002,92545.0,92544.0,0.03932]
[1765316878714,0.002,92545.0,92544.0,0.01534]
[1765316878912,0.02306829,92545.0,92544.0,0.001]
[1765316879133,0.02306829,92545.0,92544.0,0.07158366]
[1765316879134,0.001,92545.0,92544.0,0.07158366]
[1765316879362,0.003,92545.0,92544.0,0.09556366]
[1765316879566,0.002,92545.0,92544.0,0.09456366]
[1765316879776,0.02206829,92546.0,92544.0,0.09456366]
[1765316879933,0.21811108,92545.0,92544.0,0.09556366]
[1765316880136,0.22011108,92545.0,92544.0,0.001]
[1765316880479,0.004,92545.0,92544.0,0.01634]
[1765316880682,0.002,92545.0,92544.0,0.01634]
[1765316880900,0.00999456,92567.0,92566.0,0.0108031]
[1765316881114,0.01080181,92577.0,92566.0,0.0108031]
[1765316881115,0.01716,92572.0,92570.0,0.21605271]
[1765316881435,0.01080123,92582.0,92574.0,0.01080216]
[1765316881646,0.01080216,92574.0,92571.0,0.01080251]
[1765316881911,0.21605038,92571.0,92569.0,0.01137]
[1765316882072,0.21605038,92571.0,92546.0,0.32416036]
[1765316882073,0.01080415,92557.0,92554.0,0.02398]
[1765316882280,0.21608652,92556.0,92555.0,0.02730585]
[1765316882482,0.21612509,92539.0,92538.0,0.03535]
[1765316882686,0.21614845,92529.0,92528.0,0.02398]
[1765316882891,0.21614611,92530.0,92528.0,0.02398]
[1765316883092,0.03287512,92534.0,92530.0,0.01534]
[1765316883093,0.02206829,92534.0,92530.0,0.01534]
[1765316883276,0.21616769,92521.0,92513.0,0.21618583]
[1765316883485,0.21616769,92521.0,92509.0,0.01080975]
[1765316883486,0.21618349,92514.0,92510.0,0.01080964]
[1765316883723,0.21618349,92514.0,92504.0,0.01137]
[1765316883724,0.03287828,92507.0,92502.0,0.01381057]
[1765316883939,0.03287828,92507.0,92504.0,0.01081034]
[1765316884148,0.03287828,92507.0,92506.0,0.01137]
[1765316884356,0.02206829,92518.0,92513.0,0.21618583]
[1765316884558,0.00999456,92525.0,92522.0,0.01080824]
[1765316884778,0.01716,92524.0,92523.0,0.25151176]
[1765316885136,0.027968,92524.0,92518.0,0.0108087]
[1765316885346,0.027968,92524.0,92510.0,0.02398]
[1765316885347,0.001,92521.0,92514.0,0.22699266]
[1765316885550,0.01080859,92519.0,92516.0,0.01080894]
[1765316885888,0.00999456,92523.0,92518.0,0.01606]
[1765316886093,0.01199456,92524.0,92523.0,0.001]
[1765316886390,0.22697304,92522.0,92519.0,0.02301]
[1765316886591,0.00999456,92523.0,92521.0,0.01606]
[1765316886750,0.010808,92524.0,92522.0,0.03907]
[1765316887152,0.010808,92524.0,92512.0,0.21618633]
[1765316887153,0.21617414,92518.0,92509.0,0.01080975]
[1765316887398,0.0172,92523.0,92502.0,0.2300205]
[1765316887399,0.21619751,92508.0,92502.0,0.2300205]
[1765316887616,0.02206829,92509.0,92507.0,0.01606]
[1765316888033,0.00999456,92516.0,92513.0,0.01080929]
[1765316888246,0.00999456,92516.0,92504.0,0.01081034]
[1765316888247,0.0108094,92512.0,92504.0,0.01081034]
[1765316888447,0.02206829,92507.0,92505.0,0.11050762]
[1765316888858,0.02800952,92511.0,92508.0,0.01080987]
[1765316889112,0.21619751,92508.0,92506.0,0.01606]
[1765316889338,0.2162092,92503.0,92502.0,0.003]
[1765316889585,0.02206829,92503.0,92502.0,0.003]
[1765316889801,0.0172,92506.0,92504.0,0.2162047]
[1765316889960,0.001,92507.0,92505.0,0.01606]
[1765316890163,0.001,92507.0,92506.0,0.02819]
[1765316890367,0.22701474,92505.0,92502.0,0.003]
[1765316890564,0.001,92503.0,92502.0,0.003]
[1765316890748,0.02306829,92503.0,92502.0,0.003]
[1765316890953,0.02306829,92503.0,92502.0,0.04310558]
[1765316890954,0.001,92503.0,92502.0,0.04310558]
[1765316891147,0.001,92503.0,92502.0,0.1536132]
[1765316891556,0.002,92503.0,92502.0,0.1576132]
[1765316891762,0.02406829,92503.0,92502.0,0.1185432]